[Event "Titled Tuesday Blitz May 10 Early 2022"]
[White "Nilsen, Tobias Lang"]
[Black "Czopor, Maciej"]
[WhiteFideId "1521624"]
[BlackFideId "21805431"]
[WhiteElo "2014"]
[BlackElo "1999"]
[Result "1-0"]
[Round "03"]
[TimeControl "180+1"]
[Date "2022.05.11"]
[WhiteClock "0:00:20"]
[BlackClock "0:00:44"]

1. f4 {[%clk 0:03:00]}  Nh6 {[%clk 0:02:57]} 2. e4 {[%clk 0:02:56]}  d5 {[%clk 0:02:57]} 3. d3 {[%clk 0:02:55]}  dxe4 {[%clk 0:02:56]} 4. dxe4 {[%clk 0:02:56]}  Qxd1+ {[%clk 0:02:56]} 5. Kxd1 {[%clk 0:02:56]}  e5 {[%clk 0:02:54]} 6. h3 {[%clk 0:02:51]}  Nc6 {[%clk 0:02:46]} 7. c3 {[%clk 0:02:50]}  exf4 {[%clk 0:02:41]} 8. Bxf4 {[%clk 0:02:49]}  Be6 {[%clk 0:02:37]} 9. Bxc7 {[%clk 0:02:42]}  Bc5 {[%clk 0:02:33]} 10. Nf3 {[%clk 0:02:41]}  f5 {[%clk 0:02:26]} 11. Bd3 {[%clk 0:02:33]}  fxe4 {[%clk 0:02:19]} 12. Bxe4 {[%clk 0:02:33]}  Nf5 {[%clk 0:02:19]} 13. Bxf5 {[%clk 0:02:29]}  Bxf5 {[%clk 0:02:20]} 14. Re1+ {[%clk 0:02:28]}  Kd7 {[%clk 0:02:19]} 15. Bf4 {[%clk 0:02:28]}  Rhe8 {[%clk 0:02:16]} 16. Nbd2 {[%clk 0:02:26]}  Rxe1+ {[%clk 0:02:12]} 17. Nxe1 {[%clk 0:02:19]}  Re8 {[%clk 0:02:12]} 18. Ndf3 {[%clk 0:02:09]}  h6 {[%clk 0:02:08]} 19. b4 {[%clk 0:01:47]}  Bf2 {[%clk 0:02:02]} 20. b5 {[%clk 0:01:43]}  Na5 {[%clk 0:01:57]} 21. Ne5+ {[%clk 0:01:40]}  Kc8 {[%clk 0:01:58]} 22. N1d3 {[%clk 0:01:39]}  Bb6 {[%clk 0:01:16]} 23. Kd2 {[%clk 0:01:29]}  g5 {[%clk 0:01:15]} 24. Bh2 {[%clk 0:01:29]}  Rd8 {[%clk 0:01:07]} 25. Re1 {[%clk 0:01:12]}  Nc4+ {[%clk 0:01:01]} 26. Nxc4 {[%clk 0:01:05]}  Rxd3+ {[%clk 0:01:01]} 27. Ke2 {[%clk 0:00:52]}  Rxc3 {[%clk 0:01:01]} 28. Nd6+ {[%clk 0:00:51]}  Kd7 {[%clk 0:01:01]} 29. Nxf5 {[%clk 0:00:52]}  Rc2+ {[%clk 0:01:01]} 30. Kf3 {[%clk 0:00:52]}  Rf2+ {[%clk 0:01:00]} 31. Kg4 {[%clk 0:00:50]}  Rxg2+ {[%clk 0:01:01]} 32. Bg3 {[%clk 0:00:51]}  Rxa2 {[%clk 0:00:59]} 33. Re7+ {[%clk 0:00:50]}  Kc8 {[%clk 0:00:59]} 34. Nd6+ {[%clk 0:00:41]}  Kd8 {[%clk 0:00:59]} 35. Rxb7 {[%clk 0:00:42]}  Rg2 {[%clk 0:00:59]} 36. Nf5 {[%clk 0:00:40]}  Rb2 {[%clk 0:00:57]} 37. Bd6 {[%clk 0:00:33]}  Kc8 {[%clk 0:00:49]} 38. Rh7 {[%clk 0:00:27]}  Rxb5 {[%clk 0:00:49]} 39. Bg3 {[%clk 0:00:20]}  a5 {[%clk 0:00:44]} 40. Nd6+ {[%clk 0:00:20]} 1-0


[Site "https://www.chess.com"]

[Event "Titled Tuesday Blitz May 10 Early 2022"]
[White "Nogerbek, Kazybek"]
[Black "Korchmar, Vasiliy"]
[WhiteFideId "13710427"]
[BlackFideId "24131750"]
[WhiteElo "2441"]
[BlackElo "2370"]
[Result "0-1"]
[Round "03"]
[TimeControl "180+1"]
[Date "2022.05.10"]
[WhiteClock "0:00:02"]
[BlackClock "0:00:50"]

1. Nf3 {[%clk 0:03:00]}  d5 {[%clk 0:03:00]} 2. e3 {[%clk 0:02:59]}  Nf6 {[%clk 0:02:59]} 3. c4 {[%clk 0:02:59]}  c6 {[%clk 0:02:59]} 4. Nc3 {[%clk 0:02:59]}  e6 {[%clk 0:03:00]} 5. b3 {[%clk 0:02:59]}  Bd6 {[%clk 0:03:00]} 6. Bb2 {[%clk 0:02:58]}  O-O {[%clk 0:03:01]} 7. Qc2 {[%clk 0:02:49]}  e5 {[%clk 0:03:01]} 8. cxd5 {[%clk 0:02:49]}  cxd5 {[%clk 0:03:01]} 9. Nb5 {[%clk 0:02:50]}  Nc6 {[%clk 0:03:02]} 10. Nxd6 {[%clk 0:02:50]}  Qxd6 {[%clk 0:03:03]} 11. Be2 {[%clk 0:02:47]}  Bg4 {[%clk 0:03:01]} 12. h3 {[%clk 0:02:45]}  Bh5 {[%clk 0:03:00]} 13. O-O {[%clk 0:02:40]}  e4 {[%clk 0:02:55]} 14. Kh1 {[%clk 0:01:50]}  exf3 {[%clk 0:02:55]} 15. gxf3 {[%clk 0:01:51]}  Rac8 {[%clk 0:02:46]} 16. Qd1 {[%clk 0:01:45]}  d4 {[%clk 0:02:29]} 17. d3 {[%clk 0:01:42]}  Nd5 {[%clk 0:02:23]} 18. Rg1 {[%clk 0:01:42]}  Qh6 {[%clk 0:02:14]} 19. Rg3 {[%clk 0:01:34]}  Bg6 {[%clk 0:02:11]} 20. e4 {[%clk 0:01:33]}  Nf4 {[%clk 0:02:09]} 21. Bf1 {[%clk 0:01:32]}  Ne5 {[%clk 0:01:59]} 22. Bxd4 {[%clk 0:01:22]}  Qh5 {[%clk 0:01:46]} 23. Be3 {[%clk 0:01:21]}  Nfxd3 {[%clk 0:01:28]} 24. Rg5 {[%clk 0:00:36]}  Qh4 {[%clk 0:01:27]} 25. Rg3 {[%clk 0:00:16]}  h6 {[%clk 0:01:22]} 26. Bxd3 {[%clk 0:00:11]}  Rfd8 {[%clk 0:01:21]} 27. Be2 {[%clk 0:00:10]}  Rxd1+ {[%clk 0:01:20]} 28. Rxd1 {[%clk 0:00:11]}  Rc2 {[%clk 0:01:18]} 29. Re1 {[%clk 0:00:06]}  Rxa2 {[%clk 0:01:18]} 30. Kg2 {[%clk 0:00:04]}  a6 {[%clk 0:01:10]} 31. Bd1 {[%clk 0:00:03]}  Nd3 {[%clk 0:01:09]} 32. Rf1 {[%clk 0:00:02]}  Nf4+ {[%clk 0:01:09]} 33. Kh2 {[%clk 0:00:03]}  a5 {[%clk 0:01:01]} 34. Rfg1 {[%clk 0:00:02]}  b5 {[%clk 0:01:00]} 35. Re1 {[%clk 0:00:02]}  a4 {[%clk 0:01:00]} 36. bxa4 {[%clk 0:00:03]}  bxa4 {[%clk 0:01:01]} 37. e5 {[%clk 0:00:03]}  Nd5 {[%clk 0:01:00]} 38. Bc5 {[%clk 0:00:02]}  Rb2 {[%clk 0:00:58]} 39. e6 {[%clk 0:00:01]}  a3 {[%clk 0:00:50]} 40. e7 {[%clk 0:00:01]}  Nxe7 {[%clk 0:00:50]} 41. Bxe7 {[%clk 0:00:01]}  Rxf2+ {[%clk 0:00:49]} 42. Rg2 {[%clk 0:00:01]}  Rxg2+ {[%clk 0:00:50]} 43. Kxg2 {[%clk 0:00:02]}  Qxe1 {[%clk 0:00:50]} 0-1


[Site "https://www.chess.com"]

[Event "Titled Tuesday Blitz May 10 Early 2022"]
[White "Odegov, Artem"]
[Black "Bashirli, Saadat"]
[WhiteFideId "34183644"]
[BlackFideId "13429990"]
[WhiteElo "2286"]
[BlackElo "1173"]
[Result "0-1"]
[Round "03"]
[TimeControl "180+1"]
[Date "2022.05.11"]
[WhiteClock "0:00:02"]
[BlackClock "0:00:15"]

1. d4 {[%clk 0:02:52]}  d5 {[%clk 0:02:56]} 2. c4 {[%clk 0:02:51]}  e6 {[%clk 0:02:54]} 3. Nf3 {[%clk 0:02:51]}  c6 {[%clk 0:02:52]} 4. Nc3 {[%clk 0:02:51]}  dxc4 {[%clk 0:02:50]} 5. e4 {[%clk 0:02:51]}  b5 {[%clk 0:02:49]} 6. Bg5 {[%clk 0:02:52]}  Be7 {[%clk 0:02:44]} 7. h4 {[%clk 0:02:52]}  h6 {[%clk 0:02:41]} 8. Bxe7 {[%clk 0:02:51]}  Nxe7 {[%clk 0:02:38]} 9. Be2 {[%clk 0:02:51]}  Bb7 {[%clk 0:02:27]} 10. Qc2 {[%clk 0:02:50]}  Nd7 {[%clk 0:02:24]} 11. g4 {[%clk 0:02:47]}  Ng6 {[%clk 0:02:20]} 12. O-O-O {[%clk 0:02:44]}  Nf4 {[%clk 0:02:17]} 13. g5 {[%clk 0:02:42]}  h5 {[%clk 0:02:14]} 14. Qd2 {[%clk 0:02:35]}  Nxe2+ {[%clk 0:02:12]} 15. Nxe2 {[%clk 0:02:36]}  a5 {[%clk 0:02:11]} 16. Nf4 {[%clk 0:02:34]}  g6 {[%clk 0:02:00]} 17. d5 {[%clk 0:02:30]}  exd5 {[%clk 0:01:46]} 18. exd5 {[%clk 0:02:28]}  O-O {[%clk 0:01:42]} 19. Rhg1 {[%clk 0:01:45]}  Nc5 {[%clk 0:01:28]} 20. Nxh5 {[%clk 0:01:40]}  gxh5 {[%clk 0:01:20]} 21. g6 {[%clk 0:01:39]}  Nd3+ {[%clk 0:00:55]} 22. Kb1 {[%clk 0:01:37]}  Qf6 {[%clk 0:00:54]} 23. gxf7+ {[%clk 0:01:16]}  Kxf7 {[%clk 0:00:54]} 24. Ng5+ {[%clk 0:00:58]}  Ke7 {[%clk 0:00:53]} 25. Qe3+ {[%clk 0:00:58]}  Kd7 {[%clk 0:00:52]} 26. Rxd3 {[%clk 0:00:30]}  cxd3 {[%clk 0:00:50]} 27. Ne6 {[%clk 0:00:30]}  d2 {[%clk 0:00:34]} 28. Nc5+ {[%clk 0:00:05]}  Kc8 {[%clk 0:00:23]} 29. Qh3+ {[%clk 0:00:02]}  Qf5+ {[%clk 0:00:22]} 30. Qxf5+ {[%clk 0:00:01]}  Rxf5 {[%clk 0:00:23]} 31. Rg8+ {[%clk 0:00:02]}  Kc7 {[%clk 0:00:23]} 32. Rg7+ {[%clk 0:00:02]}  Kb6 {[%clk 0:00:20]} 33. Nd7+ {[%clk 0:00:02]}  Kc7 {[%clk 0:00:19]} 34. Nf6+ {[%clk 0:00:01]}  Kd6 {[%clk 0:00:20]} 35. Ne4+ {[%clk 0:00:02]}  Kxd5 {[%clk 0:00:19]} 36. Nc3+ {[%clk 0:00:02]}  Kc4 {[%clk 0:00:19]} 37. Rxb7 {[%clk 0:00:03]}  Rxf2 {[%clk 0:00:19]} 38. Kc2 {[%clk 0:00:03]}  Rd8 {[%clk 0:00:17]} 39. Nd1 {[%clk 0:00:03]}  Rf1 {[%clk 0:00:16]} 40. Ne3+ {[%clk 0:00:02]}  Kc5 {[%clk 0:00:15]} 41. Re7 {[%clk 0:00:01]}  Rd4 {[%clk 0:00:16]} 42. Nxf1 {[%clk 0:00:01]}  d1=Q+ {[%clk 0:00:15]} 43. Kc3 {[%clk 0:00:02]}  Qd3# {[%clk 0:00:15]} 0-1


[Site "https://www.chess.com"]

[Event "Titled Tuesday Blitz May 10 Early 2022"]
[White "Olsen, Filip Boe"]
[Black "Namitbir Singh Walia"]
[WhiteFideId "1440640"]
[BlackFideId "35071068"]
[WhiteElo "2247"]
[BlackElo "1565"]
[Result "0-1"]
[Round "03"]
[TimeControl "180+1"]
[Date "2022.05.11"]
[WhiteClock "0:00:07"]
[BlackClock "0:00:08"]

1. c4 {[%clk 0:03:00]}  Nf6 {[%clk 0:02:57]} 2. Nc3 {[%clk 0:03:00]}  d5 {[%clk 0:02:54]} 3. cxd5 {[%clk 0:03:00]}  Nxd5 {[%clk 0:02:55]} 4. g3 {[%clk 0:03:00]}  e5 {[%clk 0:02:51]} 5. Bg2 {[%clk 0:03:00]}  Nb6 {[%clk 0:02:52]} 6. Nf3 {[%clk 0:02:56]}  Nc6 {[%clk 0:02:51]} 7. O-O {[%clk 0:02:54]}  Be7 {[%clk 0:02:52]} 8. b3 {[%clk 0:02:54]}  O-O {[%clk 0:02:51]} 9. Bb2 {[%clk 0:02:54]}  Be6 {[%clk 0:02:47]} 10. Rc1 {[%clk 0:02:52]}  Qd7 {[%clk 0:02:45]} 11. Ne4 {[%clk 0:02:52]}  Bh3 {[%clk 0:01:54]} 12. Bxh3 {[%clk 0:02:23]}  Qxh3 {[%clk 0:01:55]} 13. d3 {[%clk 0:02:07]}  Nd7 {[%clk 0:01:43]} 14. Qd2 {[%clk 0:01:54]}  f5 {[%clk 0:01:41]} 15. Neg5 {[%clk 0:01:54]}  Qh5 {[%clk 0:01:38]} 16. Ne6 {[%clk 0:01:45]}  Rfc8 {[%clk 0:01:21]} 17. Qc3 {[%clk 0:01:36]}  Qg6 {[%clk 0:01:12]} 18. Qc4 {[%clk 0:00:37]}  Kh8 {[%clk 0:01:07]} 19. b4 {[%clk 0:00:29]}  Bxb4 {[%clk 0:01:02]} 20. Neg5 {[%clk 0:00:24]}  Rf8 {[%clk 0:00:49]} 21. h4 {[%clk 0:00:20]}  Be7 {[%clk 0:00:45]} 22. Qe6 {[%clk 0:00:18]}  Qxe6 {[%clk 0:00:37]} 23. Nxe6 {[%clk 0:00:19]}  Rfc8 {[%clk 0:00:37]} 24. Neg5 {[%clk 0:00:18]}  Kg8 {[%clk 0:00:35]} 25. Rc2 {[%clk 0:00:15]}  h6 {[%clk 0:00:35]} 26. Nh3 {[%clk 0:00:14]}  Kf7 {[%clk 0:00:34]} 27. Rfc1 {[%clk 0:00:14]}  Ke6 {[%clk 0:00:30]} 28. Kg2 {[%clk 0:00:14]}  a5 {[%clk 0:00:28]} 29. a3 {[%clk 0:00:13]}  a4 {[%clk 0:00:27]} 30. e3 {[%clk 0:00:13]}  Ra5 {[%clk 0:00:19]} 31. Nhg1 {[%clk 0:00:13]}  g5 {[%clk 0:00:18]} 32. hxg5 {[%clk 0:00:12]}  hxg5 {[%clk 0:00:19]} 33. d4 {[%clk 0:00:12]}  e4 {[%clk 0:00:18]} 34. Nd2 {[%clk 0:00:13]}  Nb6 {[%clk 0:00:18]} 35. Ne2 {[%clk 0:00:12]}  Nd5 {[%clk 0:00:18]} 36. Nc4 {[%clk 0:00:12]}  Rb5 {[%clk 0:00:18]} 37. Ba1 {[%clk 0:00:09]}  Rb3 {[%clk 0:00:18]} 38. Bb2 {[%clk 0:00:07]}  Ra8 {[%clk 0:00:17]} 39. Nd2 {[%clk 0:00:08]}  Rb6 {[%clk 0:00:17]} 40. Nc3 {[%clk 0:00:08]}  Nxc3 {[%clk 0:00:15]} 41. Bxc3 {[%clk 0:00:08]}  Rb5 {[%clk 0:00:15]} 42. Bb2 {[%clk 0:00:08]}  Ra6 {[%clk 0:00:15]} 43. Nc4 {[%clk 0:00:09]}  Kd5 {[%clk 0:00:15]} 44. Ba1 {[%clk 0:00:06]}  Bd6 {[%clk 0:00:15]} 45. Bb2 {[%clk 0:00:06]}  Ne7 {[%clk 0:00:13]} 46. Rh1 {[%clk 0:00:06]}  Rc6 {[%clk 0:00:13]} 47. Rhc1 {[%clk 0:00:06]}  Rxc4 {[%clk 0:00:12]} 48. Rxc4 {[%clk 0:00:06]}  Rxb2 {[%clk 0:00:12]} 49. Rxa4 {[%clk 0:00:07]}  Nc6 {[%clk 0:00:11]} 50. Ra8 {[%clk 0:00:04]}  f4 {[%clk 0:00:11]} 51. exf4 {[%clk 0:00:03]}  gxf4 {[%clk 0:00:12]} 52. gxf4 {[%clk 0:00:04]}  Bxf4 {[%clk 0:00:13]} 53. Rd1 {[%clk 0:00:04]}  Be3 {[%clk 0:00:12]} 54. Rf8 {[%clk 0:00:03]}  Bxd4 {[%clk 0:00:11]} 55. Rf5+ {[%clk 0:00:03]}  Kc4 {[%clk 0:00:11]} 56. Rf4 {[%clk 0:00:03]}  e3 {[%clk 0:00:10]} 57. Rc1+ {[%clk 0:00:02]}  Kd3 {[%clk 0:00:09]} 58. Rd1+ {[%clk 0:00:02]}  Rd2 {[%clk 0:00:09]} 59. Rc1 {[%clk 0:00:02]}  Rxf2+ {[%clk 0:00:08]} 60. Rxf2 {[%clk 0:00:01]}  exf2 {[%clk 0:00:09]} 61. Rd1+ {[%clk 0:00:02]}  Kc2 {[%clk 0:00:09]} 62. Rf1 {[%clk 0:00:02]}  Kb3 {[%clk 0:00:09]} 63. Kf3 {[%clk 0:00:02]}  Kxa3 {[%clk 0:00:09]} 64. Ke4 {[%clk 0:00:03]}  Bb6 {[%clk 0:00:08]} 65. Kd3 {[%clk 0:00:04]}  Kb4 {[%clk 0:00:08]} 66. Rb1+ {[%clk 0:00:04]}  Kc5 {[%clk 0:00:08]} 67. Rc1+ {[%clk 0:00:04]}  Kd5 {[%clk 0:00:09]} 68. Rd1 {[%clk 0:00:04]}  Ne5+ {[%clk 0:00:08]} 69. Ke2+ {[%clk 0:00:05]}  Ke4 {[%clk 0:00:08]} 70. Ra1 {[%clk 0:00:05]}  Bd4 {[%clk 0:00:07]} 71. Ra4 {[%clk 0:00:05]}  b5 {[%clk 0:00:07]} 72. Ra2 {[%clk 0:00:05]}  c5 {[%clk 0:00:08]} 73. Rc2 {[%clk 0:00:04]}  c4 {[%clk 0:00:08]} 74. Rc1 {[%clk 0:00:05]}  b4 {[%clk 0:00:08]} 75. Rh1 {[%clk 0:00:05]}  b3 {[%clk 0:00:08]} 76. Rh4+ {[%clk 0:00:06]}  Kd5 {[%clk 0:00:08]} 77. Rh1 {[%clk 0:00:06]}  c3 {[%clk 0:00:09]} 78. Rh5 {[%clk 0:00:04]}  b2 {[%clk 0:00:09]} 79. Rg5 {[%clk 0:00:05]}  f1=Q+ {[%clk 0:00:09]} 80. Kxf1 {[%clk 0:00:05]}  b1=Q+ {[%clk 0:00:09]} 81. Ke2 {[%clk 0:00:05]}  Qd3+ {[%clk 0:00:09]} 82. Ke1 {[%clk 0:00:06]}  Qe3+ {[%clk 0:00:09]} 83. Kf1 {[%clk 0:00:07]}  Qxg5 {[%clk 0:00:08]} 84. Ke2 {[%clk 0:00:07]}  Qe3+ {[%clk 0:00:08]} 85. Kd1 {[%clk 0:00:07]}  Qd2# {[%clk 0:00:08]} 0-1


[Site "https://www.chess.com"]

[Event "Titled Tuesday Blitz May 10 Early 2022"]
[White "Panesar Vedant"]
[Black "Steinberg, Nitzan"]
[WhiteFideId "35033018"]
[BlackFideId "2801795"]
[WhiteElo "1975"]
[BlackElo "2471"]
[Result "0-1"]
[Round "03"]
[TimeControl "180+1"]
[Date "2022.05.10"]
[WhiteClock "0:01:02"]
[BlackClock "0:01:22"]

1. d4 {[%clk 0:03:00]}  d5 {[%clk 0:02:59]} 2. Nf3 {[%clk 0:02:58]}  Nf6 {[%clk 0:02:59]} 3. Bf4 {[%clk 0:02:58]}  e6 {[%clk 0:02:59]} 4. e3 {[%clk 0:02:58]}  Bd6 {[%clk 0:03:00]} 5. Bxd6 {[%clk 0:02:58]}  cxd6 {[%clk 0:02:56]} 6. c4 {[%clk 0:02:59]}  dxc4 {[%clk 0:02:55]} 7. Bxc4 {[%clk 0:03:00]}  O-O {[%clk 0:02:55]} 8. O-O {[%clk 0:02:58]}  b6 {[%clk 0:02:56]} 9. Nc3 {[%clk 0:02:58]}  Bb7 {[%clk 0:02:56]} 10. d5 {[%clk 0:02:59]}  e5 {[%clk 0:02:53]} 11. e4 {[%clk 0:02:54]}  Nbd7 {[%clk 0:02:51]} 12. a4 {[%clk 0:02:52]}  a6 {[%clk 0:02:43]} 13. Qe2 {[%clk 0:02:48]}  g6 {[%clk 0:02:42]} 14. Rfc1 {[%clk 0:02:46]}  Nh5 {[%clk 0:02:42]} 15. b4 {[%clk 0:02:40]}  Kh8 {[%clk 0:02:35]} 16. Nd1 {[%clk 0:02:18]}  Nf4 {[%clk 0:02:33]} 17. Qe1 {[%clk 0:02:18]}  f5 {[%clk 0:02:34]} 18. Bf1 {[%clk 0:02:11]}  fxe4 {[%clk 0:02:31]} 19. Qxe4 {[%clk 0:02:09]}  Bxd5 {[%clk 0:02:31]} 20. Qe3 {[%clk 0:02:09]}  Nf6 {[%clk 0:02:16]} 21. h3 {[%clk 0:02:03]}  N6h5 {[%clk 0:02:12]} 22. Nc3 {[%clk 0:01:49]}  Nxh3+ {[%clk 0:02:10]} 23. Kh2 {[%clk 0:01:50]}  Bxf3 {[%clk 0:02:06]} 24. Kxh3 {[%clk 0:01:47]}  Nf4+ {[%clk 0:01:44]} 25. Kh2 {[%clk 0:01:46]}  Qh4+ {[%clk 0:01:42]} 26. Kg1 {[%clk 0:01:44]}  Nxg2 {[%clk 0:01:40]} 27. Bxg2 {[%clk 0:01:30]}  Qg4 {[%clk 0:01:40]} 28. Qxf3 {[%clk 0:01:28]}  Rxf3 {[%clk 0:01:39]} 29. Nd5 {[%clk 0:01:19]}  Raf8 {[%clk 0:01:38]} 30. Ne3 {[%clk 0:01:19]}  Qg5 {[%clk 0:01:37]} 31. Rf1 {[%clk 0:01:18]}  h5 {[%clk 0:01:27]} 32. Rad1 {[%clk 0:01:13]}  h4 {[%clk 0:01:23]} 33. Kh1 {[%clk 0:01:12]}  Rxf2 {[%clk 0:01:23]} 34. Rxf2 {[%clk 0:01:09]}  Rxf2 {[%clk 0:01:24]} 35. Re1 {[%clk 0:01:06]}  Qg3 {[%clk 0:01:22]} 36. a5 {[%clk 0:01:02]}  h3 {[%clk 0:01:22]} 0-1


[Site "https://www.chess.com"]

[Event "Titled Tuesday Blitz May 10 Early 2022"]
[White "Perez Rodriguez, Jennifer"]
[Black "Bashirli, Nail"]
[WhiteFideId "3507831"]
[BlackFideId "13406809"]
[WhiteElo "2170"]
[BlackElo "2333"]
[Result "0-1"]
[Round "03"]
[TimeControl "180+1"]
[Date "2022.05.11"]
[WhiteClock "0:00:05"]
[BlackClock "0:00:18"]

1. e4 {[%clk 0:03:00]}  c5 {[%clk 0:02:51]} 2. c3 {[%clk 0:03:00]}  e6 {[%clk 0:02:46]} 3. d4 {[%clk 0:03:00]}  Nf6 {[%clk 0:02:42]} 4. e5 {[%clk 0:03:00]}  Nd5 {[%clk 0:02:42]} 5. Nf3 {[%clk 0:03:01]}  cxd4 {[%clk 0:02:39]} 6. cxd4 {[%clk 0:03:01]}  b6 {[%clk 0:02:40]} 7. Bd3 {[%clk 0:03:01]}  Bb7 {[%clk 0:02:39]} 8. O-O {[%clk 0:03:01]}  Be7 {[%clk 0:02:39]} 9. Qe2 {[%clk 0:02:59]}  f5 {[%clk 0:02:39]} 10. exf6 {[%clk 0:02:57]}  Bxf6 {[%clk 0:02:37]} 11. Ne5 {[%clk 0:02:56]}  Bxe5 {[%clk 0:02:35]} 12. Qh5+ {[%clk 0:02:51]}  g6 {[%clk 0:02:28]} 13. Qxe5 {[%clk 0:02:37]}  O-O {[%clk 0:02:24]} 14. Nc3 {[%clk 0:02:34]}  Nc6 {[%clk 0:02:23]} 15. Qe4 {[%clk 0:02:16]}  Ncb4 {[%clk 0:02:14]} 16. Nxd5 {[%clk 0:02:08]}  Bxd5 {[%clk 0:02:12]} 17. Qe3 {[%clk 0:02:05]}  Rc8 {[%clk 0:02:12]} 18. Bd2 {[%clk 0:02:02]}  Nxd3 {[%clk 0:02:11]} 19. Qxd3 {[%clk 0:02:00]}  Bc4 {[%clk 0:02:11]} 20. Qg3 {[%clk 0:01:55]}  Bxf1 {[%clk 0:02:11]} 21. Rxf1 {[%clk 0:01:55]}  Qc7 {[%clk 0:02:07]} 22. Qh4 {[%clk 0:01:49]}  Qc2 {[%clk 0:02:04]} 23. Bc3 {[%clk 0:01:48]}  Qf5 {[%clk 0:01:48]} 24. Re1 {[%clk 0:01:38]}  Rf7 {[%clk 0:01:46]} 25. h3 {[%clk 0:01:35]}  g5 {[%clk 0:01:43]} 26. Qg3 {[%clk 0:01:34]}  Qf4 {[%clk 0:01:43]} 27. Qxf4 {[%clk 0:01:30]}  Rxf4 {[%clk 0:01:43]} 28. d5 {[%clk 0:01:29]}  Re8 {[%clk 0:01:28]} 29. Re3 {[%clk 0:01:07]}  Kf7 {[%clk 0:01:25]} 30. d6 {[%clk 0:01:00]}  Rc8 {[%clk 0:01:20]} 31. g3 {[%clk 0:00:56]}  Rf5 {[%clk 0:01:09]} 32. Kg2 {[%clk 0:00:56]}  Rc4 {[%clk 0:00:50]} 33. Be5 {[%clk 0:00:53]}  Rc2 {[%clk 0:00:39]} 34. Rf3 {[%clk 0:00:27]}  Re2 {[%clk 0:00:39]} 35. Bc3 {[%clk 0:00:23]}  Kg6 {[%clk 0:00:27]} 36. g4 {[%clk 0:00:21]}  Rf4 {[%clk 0:00:25]} 37. Rxf4 {[%clk 0:00:18]}  gxf4 {[%clk 0:00:26]} 38. h4 {[%clk 0:00:18]}  h5 {[%clk 0:00:24]} 39. Kf3 {[%clk 0:00:17]}  Rc2 {[%clk 0:00:21]} 40. gxh5+ {[%clk 0:00:13]}  Kxh5 {[%clk 0:00:18]} 41. Bf6 {[%clk 0:00:14]}  Rc4 {[%clk 0:00:16]} 42. Be5 {[%clk 0:00:13]}  Kxh4 {[%clk 0:00:15]} 43. Bxf4 {[%clk 0:00:14]}  Kh5 {[%clk 0:00:15]} 44. Be5 {[%clk 0:00:13]}  Kg6 {[%clk 0:00:16]} 45. Ke3 {[%clk 0:00:13]}  Kf5 {[%clk 0:00:16]} 46. f4 {[%clk 0:00:13]}  b5 {[%clk 0:00:16]} 47. b3 {[%clk 0:00:11]}  Rc2 {[%clk 0:00:16]} 48. a3 {[%clk 0:00:10]}  Ra2 {[%clk 0:00:16]} 49. Kd4 {[%clk 0:00:08]}  Rxa3 {[%clk 0:00:15]} 50. Kc3 {[%clk 0:00:08]}  a5 {[%clk 0:00:14]} 51. Kb2 {[%clk 0:00:07]}  b4 {[%clk 0:00:15]} 52. Bd4 {[%clk 0:00:03]}  a4 {[%clk 0:00:15]} 53. bxa4 {[%clk 0:00:03]}  Rxa4 {[%clk 0:00:16]} 54. Kb3 {[%clk 0:00:03]}  Ra6 {[%clk 0:00:16]} 55. Bc5 {[%clk 0:00:03]}  Kxf4 {[%clk 0:00:16]} 56. Kxb4 {[%clk 0:00:04]}  Ke4 {[%clk 0:00:16]} 57. Kb5 {[%clk 0:00:05]}  Rc6 {[%clk 0:00:17]} 58. Bb4 {[%clk 0:00:05]}  Kd5 {[%clk 0:00:18]} 59. Ba3 {[%clk 0:00:05]}  e5 {[%clk 0:00:18]} 0-1


[Site "https://www.chess.com"]

[Event "Titled Tuesday Blitz May 10 Early 2022"]
[White "Petre, Nad-Titus"]
[Black "Martin, Lewis"]
[WhiteFideId "1204165"]
[BlackFideId "410551"]
[WhiteElo "2354"]
[BlackElo "2145"]
[Result "1-0"]
[Round "03"]
[TimeControl "180+1"]
[Date "2022.05.11"]
[WhiteClock "0:00:24"]
[BlackClock "0:00:20"]

1. e4 {[%clk 0:03:00]}  c5 {[%clk 0:02:59]} 2. Nc3 {[%clk 0:03:00]}  Nc6 {[%clk 0:02:59]} 3. Bb5 {[%clk 0:03:00]}  Nd4 {[%clk 0:02:59]} 4. Nf3 {[%clk 0:03:00]}  a6 {[%clk 0:02:58]} 5. Bd3 {[%clk 0:03:00]}  g6 {[%clk 0:02:56]} 6. b4 {[%clk 0:02:58]}  Nxf3+ {[%clk 0:02:36]} 7. Qxf3 {[%clk 0:02:57]}  cxb4 {[%clk 0:02:37]} 8. Nd5 {[%clk 0:02:57]}  Bg7 {[%clk 0:02:36]} 9. Rb1 {[%clk 0:02:41]}  e6 {[%clk 0:02:32]} 10. Ne3 {[%clk 0:02:32]}  Qa5 {[%clk 0:02:21]} 11. Bc4 {[%clk 0:01:53]}  Ne7 {[%clk 0:02:18]} 12. O-O {[%clk 0:01:52]}  O-O {[%clk 0:02:15]} 13. Bb2 {[%clk 0:01:52]}  b5 {[%clk 0:02:01]} 14. Bb3 {[%clk 0:01:52]}  Bb7 {[%clk 0:02:01]} 15. Bxg7 {[%clk 0:01:50]}  Kxg7 {[%clk 0:02:01]} 16. Qg3 {[%clk 0:01:39]}  Qb6 {[%clk 0:01:53]} 17. d3 {[%clk 0:01:14]}  Rac8 {[%clk 0:01:46]} 18. f4 {[%clk 0:01:11]}  d5 {[%clk 0:01:36]} 19. f5 {[%clk 0:01:05]}  f6 {[%clk 0:01:16]} 20. Kh1 {[%clk 0:00:49]}  dxe4 {[%clk 0:01:14]} 21. fxe6 {[%clk 0:00:41]}  exd3 {[%clk 0:01:10]} 22. cxd3 {[%clk 0:00:40]}  a5 {[%clk 0:01:02]} 23. a4 {[%clk 0:00:36]}  bxa4 {[%clk 0:01:00]} 24. Bxa4 {[%clk 0:00:36]}  Qxe6 {[%clk 0:00:54]} 25. Bb3 {[%clk 0:00:35]}  Qe5 {[%clk 0:00:49]} 26. Qh3 {[%clk 0:00:33]}  Rc3 {[%clk 0:00:41]} 27. Ng4 {[%clk 0:00:32]}  Qe2 {[%clk 0:00:33]} 28. Qh6+ {[%clk 0:00:23]}  Kh8 {[%clk 0:00:20]} 29. Qxf8+ {[%clk 0:00:23]}  Ng8 {[%clk 0:00:20]} 30. Qxg8# {[%clk 0:00:24]} 1-0


[Site "https://www.chess.com"]